Cogmind - Beta 11.1 @@@ ROGUE MODE // 2022.06.11 @ 10:47:20 Player: Demise Result: Destroyed by G-47 Trooper with Particle Gun Performance ------------- Evolutions (0) 0 Regions Visited (1) 200 Robots Destroyed (29) 145 Value Destroyed (727) 727 Prototype IDs (4) 80 Alien Tech Used (0) 0 Bonus (0) 0 TOTAL SCORE: 1152 Bonus ------- None Cogmind --------- Core Integrity 0/250 Matter 227/300 Energy 160/160 System Corruption 0% Temperature Cool (9) Movement Rolling (135) Ox3 Location -10/Materials Parts ------- > --- POWER (1) -------- Light Nuclear Core > --- PROPULSION (2) --- Wheel Compact Wheel > --- UTILITY (2) ------ Huge Storage Unit Utility Shielding > --- WEAPON (2) ------- Assault Rifle Light Assault Rifle > --- INVENTORY (25) --- Wheel Compact Wheel Compact Wheel Compact Wheel Compact Wheel Weight Redist. System Structural Scanner Improved Terrain Scanner Seismic Detector Utility Shielding Utility Shielding Utility Shielding Light EM Pulse Cannon Light EM Pulse Cannon Light Assault Rifle Light Assault Rifle Light Assault Rifle Light Assault Rifle Light Assault Rifle Light Assault Rifle Light Assault Rifle Light Assault Rifle Mini Grenade Launcher Mini Grenade Launcher Datajack Peak State ------------ > --- POWER ------------ Light Nuclear Core > --- PROPULSION ------- Wheel Compact Wheel > --- UTILITY ---------- Huge Storage Unit Utility Shielding > --- WEAPON ----------- Assault Rifle Light Assault Rifle > --- INVENTORY -------- Wheel Compact Wheel Compact Wheel Compact Wheel Compact Wheel Weight Redist. System Structural Scanner Improved Terrain Scanner Seismic Detector Utility Shielding Utility Shielding Utility Shielding Light EM Pulse Cannon Light EM Pulse Cannon Light Assault Rifle Light Assault Rifle Light Assault Rifle Light Assault Rifle Light Assault Rifle Light Assault Rifle Mini Grenade Launcher Mini Grenade Launcher Datajack [Rating: 12] Favorites ----------- Power Light Nuclear Core Engine Ion Engine Power Core Light Nuclear Core Propulsion Wheel Wheel Wheel Utility Utility Shielding Device Seismic Detector Storage Large Storage Unit Processor Signal Interpreter Protection Utility Shielding Weapon Light Assault Rifle Energy Gun Medium Laser Ballistic Gun Light Assault Rifle Build | -11 -10 ------- Run | Scr Mat Slots Evolved . | . . Power . | . . Propulsion . | . . Utility . | . . Weapon . | . . Parts Attached 34 | 6 28 Power 5 | 1 4 Engine 2 | 1 1 Core 3 | . 3 Reactor . | . . Propulsion 12 | 2 10 Treads . | . . Leg . | . . Wheel 12 | 2 10 Hover . | . . Flight . | . . Utility 8 | 1 7 Device 1 | . 1 Storage 4 | 1 3 Processor 1 | . 1 Hackware . | . . Protection 2 | . 2 Artifact . | . . Weapon 9 | 2 7 Energy Gun 2 | 1 1 Energy Cannon . | . . Ballistic Gun 7 | 1 6 Ballistic Cannon . | . . Launcher . | . . Special Weapon . | . . Impact Weapon . | . . Slashing Weapon . | . . Piercing Weapon . | . . Special Melee Weapon . | . . Unidentified Prototypes . | . . Parts Lost 5 | . 5 Power 1 | . 1 Propulsion 3 | . 3 Utility . | . . Weapon 1 | . 1 Highest Loss Streak 3 | . 3 To Critical Strikes . | . . Average Slot Usage (%) 98 | . 98 Engine 4 | . 4 Core 8 | . 8 Wheel 27 | . 27 Storage 14 | . 14 Protection 13 | . 13 Energy Gun 9 | . 9 Ballistic Gun 18 | . 18 Naked Turns . | . . Heaviest Build 89 | 13 89 Greatest Support 26 | 26 26 Greatest Overweight (x) 5 | . 5 Average Overweight (x) 1 | . 1 Largest Inventory Capacity 25 | 8 25 Average Capacity 15 | 7 16 Most Carried 25 | 7 25 Average Carried 13 | 2 15 Final Capacity 25 | 8 25 Final Carried 25 | 7 25 Class Distribution -------------------- 100% | Mutant Dominant Class ---------------- Mutant | -10/Materials Resources | -11 -10 ----------- Run | Scr Mat Matter Collected 585 | 283 302 Remotely . | . . Salvage Created 1043 | 205 838 Parts 56 | 12 44 Haulers Intercepted 1 | . 1 Recyclers Shooed 1 | . 1 Parts Field Recycled . | . . Retrieved Matter . | . . Parts Self-Destructed . | . . Prevented . | . . Kills | -11 -10 ------- Run | Scr Mat Combat Hostiles Destroyed 19 | . 19 Guns 19 | . 19 Classes Destroyed 6 | 3 3 Worker 3 | 2 1 Tunneler 4 | 4 . Hauler 1 | . 1 Recycler 1 | 1 . Watcher 1 | . 1 Grunt 19 | . 19 Best Kill Streak 5 | 5 5 Combat Bots Only 4 | . 4 Max Kills in Single Turn 1 | 1 1 Gunslinging . | . . Exploded . | . . Melee . | . . Uniques/NPCs Destroyed . | . . Combat | -11 -10 -------- Run | Scr Mat Damage Taken 920 | . 920 Core 262 | . 262 Absorbed by Shields . | . . Redirected to Shielding 17 | . 17 Core Remaining (%) 100 | 100 . Volleys Fired 109 | 23 86 Largest 2 | 2 2 Hottest 70 | 70 70 Shots Fired 214 | 46 168 Gun 214 | 46 168 Cannon . | . . Launcher . | . . Special . | . . Kinetic 124 | 23 101 Thermal 90 | 23 67 Explosive . | . . Electromagnetic . | . . Robot Hit Streak 13 | 13 10 Robot Miss Streak 5 | 5 4 Penetration Max . | . . Secondary Targets 1 | . 1 Max Gunslinging Chain 1 | . 1 Shots Hit Robots 145 | 31 114 Core Hits 58 | 11 47 Critical Kills 1 | . 1 Critical Parts Destroyed . | . . Critical Strikes 5 | 1 4 Burn 4 | 1 3 Destroy 1 | . 1 Melee Attacks . | . . Impact . | . . Slashing . | . . Piercing . | . . Sneak Attacks . | . . Combat Hostiles . | . . Follow-up Attacks . | . . Damage Inflicted 1516 | 334 1182 Guns 1516 | 334 1182 Cannons . | . . Explosions . | . . Melee . | . . Ramming . | . . Kinetic 731 | 121 610 Thermal 785 | 213 572 Explosive . | . . Electromagnetic . | . . Impact . | . . Slashing . | . . Piercing . | . . Highest Corruption . | . . Average Corruption . | . . Corruption Purged . | . . Corruption Blocked . | . . Overload Shots . | . . Overflow Damage . | . . Projectiles . | . . Explosions . | . . Melee . | . . Knockbacks . | . . Impact . | . . Kinetic . | . . Secondary . | . . Self-Inflicted Damage . | . . Shots . | . . Rammed . | . . Targets Rammed . | . . Kicked . | . . Crushed . | . . Highest Temperature 331 | 210 331 Average Temperature 91 | 81 94 Received Heat Transfer 513 | . 513 Effects 1 | . 1 Shutdowns 1 | . 1 Siege Activations . | . . Robots Corrupted . | . . Combat Hostiles . | . . Parts Fried . | . . Impact Corruptions . | . . Robots Melted . | . . Combat Hostiles . | . . Parts Melted 6 | 2 4 Heat Transferred 2412 | 703 1709 Parts Sabotaged . | . . Parts Stolen . | . . Parts Stripped . | . . Power Chain Reactions . | . . Missiles Intercepted . | . . Alert | -11 -10 ------- Run | Scr Mat Peak Influence 399 | 35 399 Initial 22 | . 22 Average 243 | 15 271 Maximum Alert Level 1 | . 1 Low Security (%) 29 | 100 20 Level 1 70 | . 79 Level 2 . | . . Level 3 . | . . Level 4 . | . . Level 5 . | . . High Security . | . . Max Security . | . . Squads Dispatched 7 | . 7 Investigation 7 | . 7 Extermination . | . . Reinforcement . | . . Assault . | . . Garrison . | . . Intercept . | . . Searches Triggered . | . . Construction Impeded . | . . Haulers Reinforced . | . . Active Scanning Responses . | . . Cargo Convoy Interrupts . | . . Stealth | -11 -10 --------- Run | Scr Mat Distress Signals 3 | . 3 Communications Jammed . | . . Distress Signals . | . . Times Spotted 28 | . 28 Peak Tracking Total 5 | . 5 Tactical Retreats 1 | . 1 Traps | -11 -10 ------- Run | Scr Mat Traps Triggered 4 | . 4 Indirectly . | . . Trap Hack Attempts . | . . Triggered . | . . Disarmed . | . . Reprogrammed . | . . Reused . | . . Traps Extracted . | . . Installed . | . . Triggered . | . . Machines | -11 -10 ---------- Run | Scr Mat Machines Disabled . | . . Max in Single Turn . | . . Machines Sabotaged . | . . Garrisons Compromised . | . . Overloaded Fab Kills . | . . Hacking | -11 -10 --------- Run | Scr Mat Machines Accessed 10 | . 10 Terminals 8 | . 8 Fabricators . | . . Repair Stations . | . . Recycling Units 2 | . 2 Scanalyzers . | . . Garrison Access . | . . Total Hacks 35 | . 35 Successful 20 | . 20 Failed 14 | . 14 Catastrophic 1 | . 1 Database Lockouts 1 | . 1 Manual 23 | . 23 Terminals 32 | . 32 Fabricators . | . . Repair Stations . | . . Recycling Units 3 | . 3 Scanalyzers . | . . Garrison Access . | . . Terminal Hacks 10 | . 10 Robot Analysis 5 | . 5 Prototype ID Bank 2 | . 2 Terminal Index 1 | . 1 Locate Traps 1 | . 1 Zone Layout 1 | . 1 Fabricator Hacks . | . . Repair Station Hacks . | . . Recycling Unit Hacks 1 | . 1 Retrieve Components 1 | . 1 Scanalyzer . | . . Garrison Access Hacks . | . . Unauthorized Hacks 9 | . 9 Terminals 7 | . 7 Botnet 6 | . 6 Operators 1 | . 1 Fabricators . | . . Repair Stations . | . . Recycling Units 2 | . 2 Tunnel 2 | . 2 Scanalyzers . | . . Garrison Access . | . . Data Cores Recovered . | . . Used . | . . Hacking Detections 7 | . 7 Full Trace Events 7 | . 7 Feedback Events . | . . Feedback Blocked . | . . Robot Schematics Acquired . | . . Robots Built . | . . Authchips . | . . Time . | . . Total Robot Build Rating . | . . Part Schematics Acquired . | . . Parts Built . | . . Authchips . | . . Time . | . . Total Part Build Rating . | . . Parts Repaired . | . . Time . | . . Parts Recycled . | . . Recycled Matter . | . . Retrieved Matter . | . . Retrieved Components 3 | . 3 Parts Scanalyzed . | . . Part Schematics Acquired . | . . Parts Damaged . | . . Bothacking | -11 -10 ------------ Run | Scr Mat Used RIF Installer . | . . Robots Hacked . | . . Non-combat . | . . Combat . | . . Robot Hacks Applied . | . . Relay Couplers Released . | . . Fabnet Peak Effective % . | . . Robots Rewired . | . . Allies Hacked . | . . Hacks Repelled . | . . Allies | -11 -10 -------- Run | Scr Mat Total Allies . | . . Largest Group . | . . Highest-Rated Group . | . . Highest-Rated Ally . | . . Total Orders . | . . Ally Attacks . | . . Total Damage . | . . Kills . | . . Allies Corrupted . | . . Allies Melted . | . . Intel | -11 -10 ------- Run | Scr Mat Robot Analysis Total 5 | . 5 Derelict Logs Recovered . | . . Drone Launches . | . . Drone Recoveries . | . . Exploration | -11 -10 ------------- Run | Scr Mat Turns Passed 1142 | 127 1015 Spaces Moved 677 | 51 626 Core 1 | 1 . Treads . | . . Legs . | . . Wheels 676 | 50 626 Hover . | . . Flight . | . . Fastest Speed 50 | 50 80 Average Speed 104 | 89 105 Slowest Speed 175 | 90 175 Overloaded Moves . | . . Propulsion Burnouts . | . . Robots Hopped . | . . Cave-ins Triggered . | . . Exploration Rate (%) 48 | 5 92 Regions Visited 1 Branch Regions . Pre-discovered Areas 2 | . 2 Known Exits Taken . | . . Unknown Exits Taken 1 | 1 . Scrap Searched . | . . Spaces Dug . | . . Terrain Destroyed . | . . Melee . | . . Projectile . | . . AOE . | . . Terrain Rammed . | . . Walls Destroyed . | . . Machines Disabled . | . . Actions | -11 -10 --------- Run | Scr Mat Total 921 | 88 833 Wait 44 | . 44 Move 676 | 50 626 Hop . | . . Pick Up 38 | 8 30 Fast Attach 17 | 6 11 Attach 7 | . 7 Detach 3 | . 3 Swap 10 | . 10 Drop 17 | 1 16 Fire 109 | 23 86 Melee . | . . Ram . | . . Kick . | . . Crush . | . . Escape Stasis . | . . Rewire . | . . Trap . | . . Miscellaneous . | . . Route ------- -11/Scrapyard -10/Materials (discovered 4 exits: *Mat x3 / [*Min]) History --------- Turn | Location | Event 15 | -11/Scrapyard | Discovered new exit (range 14) 128 | -11/Scrapyard | Entered Materials 314 | -10/Materials | Build established: Mutant 322 | -10/Materials | Discovered new exit (range 16) 431 | -10/Materials | Discovered new exit (range 14) 470 | -10/Materials | Core integrity fell below 50% 504 | -10/Materials | Lost 3 parts (1p1n1w) 548 | -10/Materials | Central database locked down 648 | -10/Materials | Core integrity fell below 20% 759 | -10/Materials | Discovered new exit (range 8) 768 | -10/Materials | Identified exit to Materials 924 | -10/Materials | Discovered exit to Materials (range 16) 1143 | -10/Materials | Destroyed by G-47 Trooper with Particle Gun Last Messages --------------- Downloading analysis... W-25 Informer Tier: 3 An upgrade to the W-16 Scout, Informers improve on the Scout's sensor range, and have access to even more specific signal interpretation data. They are also capable of jamming weaker sensors within their area of influence, though as unarmed surveillance units rather than front-line combatants, agility is preferred over additional armor to protect their systems from electromagnetic damage. 01063_ Triggered Blade Trap. 01063_ Massive razor-sharp blades shoot up from within the floor. 01063_ Assault Rifle severed. 01063_ Lgt. Nuclear Core severed. 01063_ Wheel severed. 01064_ Acquired Assault Rifle. 01066_ U-05 Engineer lays Concrete. 01067_ Acquired Wheel. 01070_ Acquired Lgt. Nuclear Core. 01105_ K-01 Serf collects debris. 01126_ W-16 Scout sends out distress signal. Map ----- +----------------------------------------------------+ | ?########+## ######### ###+########+####### | | ?????# = ! %[[% | | ?????# ! *[###### | | ?????# " #????? | | ?######+#### ##### #######+##### T ##????? | | ?# # #???# #?# # " #?????? | | ?# """ """ # #???# #?# ! # #?????? | | ?# """ """ # #???# #?# # #?????? | | ?# """ """ # #???# #?# """ """ # ^!!! #??#### | | ?# # #???# #?# """ """ # !^!! #??#!!! | | ?# # #???# #?# """ """ # !!! #??#!!! | | ?# # #???# #?# # ^ #??#! = | | ?# # #???? #?# # ^ #### | | ?########### #???? ############# ^""" #="" | | ???????????# #####/## """ ## """ =%#["" | | ???????????# # ## """ "R" ## """ %=/%"" | | ???????????# # ""## """ " " ## ^ *#! | | ???????????# # ""## """ ## #### | | ???????????#^ # ! T"## # T | | ???????????# # ""## # | | ???????????# # = ""## ?? + | | ???????????# # ## ?????# #######+### | | ???????????# # #?#/#??????# ????? # " | | ??########## # [ #?# #?????# ?????# # " | | ??# # # ###g####### ?????#""" # " | | ??# """ # #[ ## @ #????????#""" # | | ??# """ # # [ ##w""" ! #????????#""" ]# | | ??# """ # ###+#### """ #????????# # | | ??# # ![ # """ #????????# # | | ??# """ + =! + #????????####### " | | ??# """ # # """ #??????????????# " | | ??# """ # ######## """ #??????????????# " | | ??? # #??????# """ #??????????????# | | ??########## #??????# #??????????????+ | | ??# #### #??????##########??????????????? | | ??# T #?????????????????????????????????# | | ??# "" #?????????????????????????????????# | | ??# #????????????????????????????????## | | ??# ########????????????????????????????????#! | | ??## #######??????????????????????????????????#! | | ???# # #????????????????????? ### ######## | | ???# # " #???????????????????? | | ???# + "" #????????????????????< | | ???# # "" #???????????????????? | | ???# # """ #????????????????????? ############# | | ???# # "" #????????????????????#######????????# | | ???# # """ #????????????????????# ########## | | ???# # """ #????????????????????# | | ???# # """ #????????????????????# !%== | | ???# # " #????????????????????# [%%% | +----------------------------------------------------+ Best States ------------- Heat Dissipation 25 Energy Generation 14 Energy Capacity 250 Matter Stores 300 Matter Capacity 300 Sight Range 16 Terrain Scan Density 10 Utility Shielding 33 Evasion (%) 44 Item Schematics ----------------- None Robot Schematics ------------------ None Fabricated ------------ Nothing Alien Tech Used ----------------- None Achievements -------------- None Challenges ------------ None Game ------ Seed AluminumActuatorMatter Manual? 0 Play Time 00:13:29 Cumulative 581.2 hours Start 2022.06.11 @ 10:36:48 End 2022.06.11 @ 10:47:20 Sessions 1 Manual Loads 0 Difficulty Rogue Special Mode None Game No. 469 Rogue 469 Adventurer 0 Explorer 0 Win Type - Total 5 Types 4/0/0/1/0/0/0/0/0 Lore% 71 Gallery% 84 Achievement% 66 Wizard Run 0 Options --------- ASCII 0 Keyboard 1 Movement Numpad Keybinds 0 Fullscreen 1 Font 12/Terminus Map View 83x54 Tactical HUD 1 Map Filters NONE Filters NONE Steam 1 RUN: c6ef686e-33f0-4c30-8f3f-7893a9fdda52